[Event "Early-Titled-Tuesday-Blitz-March-26-2024"]
[Site "Chess.com"]
[Date "2024.03.26"]
[Round "7"]
[White "newyorkmouse"]
[Black "Savagelittlemole"]
[Result "0-1"]
[WhiteElo "2702"]
[BlackElo "2505"]
[TimeControl "180+1"]
[EndTime "9:15:04 PDT"]
[Termination "Savagelittlemole won by checkmate"]

1. Nf3 {[%clk 0:03:00.9]} 1... Nf6 {[%clk 0:02:58.9]} 2. b3 {[%clk 0:02:56.4]}
2... c5 {[%clk 0:02:58.7]} 3. Bb2 {[%clk 0:02:56.7]} 3... Nc6 {[%clk 0:02:59.1]}
4. e3 {[%clk 0:02:56.9]} 4... d6 {[%clk 0:02:59.2]} 5. d4 {[%clk 0:02:52.3]}
5... cxd4 {[%clk 0:02:58.6]} 6. exd4 {[%clk 0:02:52.4]} 6... g6 {[%clk
0:02:52.7]} 7. Be2 {[%clk 0:02:43.7]} 7... Bg7 {[%clk 0:02:52.5]} 8. O-O {[%clk
0:02:44.2]} 8... O-O {[%clk 0:02:52.5]} 9. Re1 {[%clk 0:02:44.9]} 9... Bg4
{[%clk 0:02:51.9]} 10. c4 {[%clk 0:02:43.9]} 10... Rc8 {[%clk 0:02:47.1]} 11. h3
{[%clk 0:02:40.2]} 11... Bxf3 {[%clk 0:02:46.4]} 12. Bxf3 {[%clk 0:02:41.1]}
12... Nd7 {[%clk 0:02:39.9]} 13. Na3 {[%clk 0:02:34.5]} 13... a6 {[%clk
0:02:37.3]} 14. Qd2 {[%clk 0:02:31.5]} 14... e5 {[%clk 0:02:35.7]} 15. dxe5
{[%clk 0:02:24.2]} 15... Ndxe5 {[%clk 0:02:14.2]} 16. Bd5 {[%clk 0:02:19.3]}
16... Rc7 {[%clk 0:02:06.8]} 17. g3 {[%clk 0:02:16.1]} 17... Qc8 {[%clk
0:01:58.4]} 18. Bg2 {[%clk 0:02:14.8]} 18... Qf5 {[%clk 0:01:58.5]} 19. Rad1
{[%clk 0:02:01.9]} 19... Rd7 {[%clk 0:01:46.1]} 20. Nc2 {[%clk 0:01:52.8]} 20...
Nf3+ {[%clk 0:01:26.8]} 21. Bxf3 {[%clk 0:01:50]} 21... Qxf3 {[%clk 0:01:27.7]}
22. Bxg7 {[%clk 0:01:48.2]} 22... Kxg7 {[%clk 0:01:27.2]} 23. Ne3 {[%clk
0:01:47.6]} 23... Ne5 {[%clk 0:01:20.9]} 24. Nd5 {[%clk 0:01:19.9]} 24... h5
{[%clk 0:01:10.8]} 25. c5 {[%clk 0:01:09.7]} 25... h4 {[%clk 0:00:46.6]} 26.
cxd6 {[%clk 0:01:05.6]} 26... hxg3 {[%clk 0:00:46.1]} 27. Rxe5 {[%clk
0:00:42.3]} 27... gxf2+ {[%clk 0:00:45.2]} 28. Kf1 {[%clk 0:00:37.5]} 28... Rxd6
{[%clk 0:00:40.7]} 29. Qd4 {[%clk 0:00:30.2]} 29... f6 {[%clk 0:00:30.4]} 30.
Re7+ {[%clk 0:00:25.3]} 30... Rf7 {[%clk 0:00:30.8]} 31. Rxf7+ {[%clk
0:00:25.7]} 31... Kxf7 {[%clk 0:00:30.8]} 32. Rd2 {[%clk 0:00:21.4]} 32... Re6
{[%clk 0:00:20.6]} 33. Rd1 {[%clk 0:00:06.8]} 33... Qe2+ {[%clk 0:00:20.8]} 34.
Kg2 {[%clk 0:00:06.8]} 34... f1=Q+ {[%clk 0:00:21.1]} 35. Kg3 {[%clk 0:00:07.2]}
35... Qfxd1 {[%clk 0:00:18.4]} 36. Qb6 {[%clk 0:00:06.3]} 36... Qdd3+ {[%clk
0:00:17.6]} 37. Kh4 {[%clk 0:00:05.8]} 37... Qh5# {[%clk 0:00:18]} 0-1

[Event "Early-Titled-Tuesday-Blitz-March-26-2024"]
[Site "Chess.com"]
[Date "2024.03.26"]
[Round "7"]
[White "Chessmissile07"]
[Black "Onischuk_V"]
[Result "0-1"]
[WhiteElo "2914"]
[BlackElo "2820"]
[TimeControl "180+1"]
[EndTime "9:15:05 PDT"]
[Termination "Onischuk_V won by checkmate"]

1. a3 {[%clk 0:03:00.9]} 1... g6 {[%clk 0:02:57]} 2. c4 {[%clk 0:02:56.7]} 2...
Bg7 {[%clk 0:02:57.4]} 3. g3 {[%clk 0:02:56.5]} 3... Nf6 {[%clk 0:02:55.4]} 4.
Bg2 {[%clk 0:02:56.7]} 4... O-O {[%clk 0:02:55.9]} 5. Nc3 {[%clk 0:02:56.9]}
5... d6 {[%clk 0:02:55]} 6. e4 {[%clk 0:02:55.6]} 6... c5 {[%clk 0:02:48.3]} 7.
Nge2 {[%clk 0:02:55.2]} 7... Nc6 {[%clk 0:02:48.9]} 8. O-O {[%clk 0:02:54.2]}
8... Nd7 {[%clk 0:02:48]} 9. d3 {[%clk 0:02:52.1]} 9... Nd4 {[%clk 0:02:37.7]}
10. Nxd4 {[%clk 0:02:24.6]} 10... Bxd4 {[%clk 0:02:34.2]} 11. Qe2 {[%clk
0:02:13.2]} 11... a6 {[%clk 0:02:32.9]} 12. Be3 {[%clk 0:02:12.4]} 12... Bg7
{[%clk 0:02:33.1]} 13. Rfd1 {[%clk 0:02:10.5]} 13... b5 {[%clk 0:02:24.6]} 14.
d4 {[%clk 0:01:55.4]} 14... cxd4 {[%clk 0:02:22.3]} 15. Bxd4 {[%clk 0:01:56.3]}
15... Bxd4 {[%clk 0:02:21.2]} 16. Rxd4 {[%clk 0:01:57.2]} 16... Rb8 {[%clk
0:02:21.2]} 17. cxb5 {[%clk 0:01:55.6]} 17... axb5 {[%clk 0:02:21.2]} 18. Rad1
{[%clk 0:01:52.9]} 18... Ne5 {[%clk 0:02:05.8]} 19. Nd5 {[%clk 0:01:39.4]} 19...
Be6 {[%clk 0:01:59.3]} 20. Ne3 {[%clk 0:01:38.6]} 20... Qb6 {[%clk 0:01:56.3]}
21. f4 {[%clk 0:01:30]} 21... Nc6 {[%clk 0:01:48.2]} 22. R4d2 {[%clk 0:01:24]}
22... b4 {[%clk 0:01:48.4]} 23. a4 {[%clk 0:01:04.8]} 23... Rfc8 {[%clk
0:01:45.3]} 24. Kh1 {[%clk 0:01:00.9]} 24... Ra8 {[%clk 0:01:40.9]} 25. Nd5
{[%clk 0:00:52.2]} 25... Qa6 {[%clk 0:01:22.7]} 26. Qe3 {[%clk 0:00:37.1]} 26...
Qxa4 {[%clk 0:01:10.9]} 27. Nb6 {[%clk 0:00:31.9]} 27... Qa7 {[%clk 0:01:10.7]}
28. Qg1 {[%clk 0:00:32.1]} 28... Na5 {[%clk 0:00:46.3]} 29. Nxa8 {[%clk
0:00:30.6]} 29... Qxa8 {[%clk 0:00:43.7]} 30. e5 {[%clk 0:00:28]} 30... Qb8
{[%clk 0:00:42.1]} 31. exd6 {[%clk 0:00:24]} 31... exd6 {[%clk 0:00:42.3]} 32.
Rxd6 {[%clk 0:00:13.8]} 32... Nc4 {[%clk 0:00:42.3]} 33. R6d4 {[%clk 0:00:11.8]}
33... Nxb2 {[%clk 0:00:41]} 34. Rb1 {[%clk 0:00:12.2]} 34... Nc4 {[%clk
0:00:41]} 35. Qe1 {[%clk 0:00:10.9]} 35... b3 {[%clk 0:00:40.1]} 36. Rd3 {[%clk
0:00:07.1]} 36... b2 {[%clk 0:00:39.7]} 37. Qe2 {[%clk 0:00:05.7]} 37... Bf5
{[%clk 0:00:38.8]} 38. Be4 {[%clk 0:00:05.1]} 38... Re8 {[%clk 0:00:39.1]} 39.
Rd4 {[%clk 0:00:05]} 39... Bxe4+ {[%clk 0:00:38.1]} 40. Rxe4 {[%clk 0:00:05.9]}
40... Qb7 {[%clk 0:00:37.6]} 41. Qxc4 {[%clk 0:00:03.8]} 41... Rxe4 {[%clk
0:00:37.7]} 42. Rxb2 {[%clk 0:00:03.9]} 42... Re1# {[%clk 0:00:37.9]} 0-1

[Event "Early-Titled-Tuesday-Blitz-March-26-2024"]
[Site "Chess.com"]
[Date "2024.03.26"]
[Round "7"]
[White "Matrix3x3a"]
[Black "Kacparov"]
[Result "0-1"]
[WhiteElo "2622"]
[BlackElo "2893"]
[TimeControl "180+1"]
[EndTime "9:15:05 PDT"]
[Termination "Kacparov won by resignation"]

1. d4 {[%clk 0:03:00.9]} 1... Nf6 {[%clk 0:02:59.2]} 2. c4 {[%clk 0:03:00.2]}
2... e6 {[%clk 0:02:59.7]} 3. Nf3 {[%clk 0:02:58.3]} 3... Bb4+ {[%clk
0:02:58.8]} 4. Bd2 {[%clk 0:02:57.7]} 4... a5 {[%clk 0:02:59.1]} 5. Nc3 {[%clk
0:02:57.4]} 5... O-O {[%clk 0:02:58.7]} 6. e3 {[%clk 0:02:56.4]} 6... b6 {[%clk
0:02:57.9]} 7. Bd3 {[%clk 0:02:56]} 7... Bb7 {[%clk 0:02:58.2]} 8. O-O {[%clk
0:02:56.3]} 8... d6 {[%clk 0:02:56.1]} 9. Re1 {[%clk 0:02:55.5]} 9... Bxc3
{[%clk 0:02:54.4]} 10. Bxc3 {[%clk 0:02:55]} 10... Ne4 {[%clk 0:02:55.1]} 11.
Bxe4 {[%clk 0:02:50.7]} 11... Bxe4 {[%clk 0:02:54.9]} 12. Nd2 {[%clk 0:02:50.9]}
12... Bb7 {[%clk 0:02:54.4]} 13. e4 {[%clk 0:02:50.6]} 13... Nd7 {[%clk
0:02:53.6]} 14. b3 {[%clk 0:02:48.7]} 14... f5 {[%clk 0:02:45.5]} 15. d5 {[%clk
0:02:46.2]} 15... e5 {[%clk 0:02:40.4]} 16. Rf1 {[%clk 0:02:34.9]} 16... Qh4
{[%clk 0:02:35.4]} 17. Qe2 {[%clk 0:02:32.9]} 17... Rae8 {[%clk 0:02:32.8]} 18.
g3 {[%clk 0:02:27.3]} 18... Qh3 {[%clk 0:02:29.2]} 19. f3 {[%clk 0:02:20.5]}
19... Bc8 {[%clk 0:02:27.4]} 20. exf5 {[%clk 0:02:20]} 20... Qxf5 {[%clk
0:02:25.9]} 21. Ne4 {[%clk 0:02:19.1]} 21... Nf6 {[%clk 0:02:25.9]} 22. Nxf6+
{[%clk 0:02:10.6]} 22... Qxf6 {[%clk 0:02:02.2]} 23. Rae1 {[%clk 0:02:08.5]}
23... Bh3 {[%clk 0:01:58.8]} 24. Rf2 {[%clk 0:02:07.7]} 24... Qg6 {[%clk
0:01:58.1]} 25. Qe4 {[%clk 0:01:58.4]} 25... Bf5 {[%clk 0:01:57.7]} 26. Qe3
{[%clk 0:01:57.6]} 26... h5 {[%clk 0:01:57.3]} 27. Kh1 {[%clk 0:01:54.5]} 27...
Re7 {[%clk 0:01:51.6]} 28. a3 {[%clk 0:01:51.7]} 28... Ref7 {[%clk 0:01:51.3]}
29. f4 {[%clk 0:01:37.9]} 29... Bd7 {[%clk 0:01:37.7]} 30. Rg1 {[%clk
0:01:29.3]} 30... Bf5 {[%clk 0:01:22.9]} 31. Re1 {[%clk 0:01:27.5]} 31... Bd7
{[%clk 0:01:19.6]} 32. Rg1 {[%clk 0:01:24.4]} 32... a4 {[%clk 0:01:16.6]} 33. b4
{[%clk 0:01:21.7]} 33... b5 {[%clk 0:01:16.9]} 34. c5 {[%clk 0:01:19.3]} 34...
Qf5 {[%clk 0:01:15.4]} 35. Rd1 {[%clk 0:01:11.8]} 35... Bc8 {[%clk 0:01:11.9]}
36. Rdd2 {[%clk 0:00:53.6]} 36... h4 {[%clk 0:01:03.3]} 37. Kg1 {[%clk
0:00:49.8]} 37... exf4 {[%clk 0:00:58.1]} 38. gxf4 {[%clk 0:00:44.3]} 38... Bd7
{[%clk 0:00:51.7]} 39. Rg2 {[%clk 0:00:39]} 39... Re8 {[%clk 0:00:51.2]} 40. Qd4
{[%clk 0:00:30.4]} 40... Re1+ {[%clk 0:00:51.1]} 41. Kf2 {[%clk 0:00:27.7]}
41... Ree7 {[%clk 0:00:51.7]} 42. Kg1 {[%clk 0:00:20.5]} 42... Qb1+ {[%clk
0:00:49.4]} 43. Rd1 {[%clk 0:00:18.4]} 43... Qf5 {[%clk 0:00:44.3]} 44. cxd6
{[%clk 0:00:18.4]} 44... cxd6 {[%clk 0:00:44.4]} 45. Rf1 {[%clk 0:00:18.6]}
45... Bc8 {[%clk 0:00:42.9]} 46. Rg5 {[%clk 0:00:18]} 46... Qc2 {[%clk
0:00:39.2]} 47. f5 {[%clk 0:00:17.2]} 47... Re5 {[%clk 0:00:39]} 48. f6 {[%clk
0:00:13.9]} 48... Rxg5+ {[%clk 0:00:38.6]} 0-1

[Event "Early-Titled-Tuesday-Blitz-March-26-2024"]
[Site "Chess.com"]
[Date "2024.03.26"]
[Round "7"]
[White "YegoryoCh"]
[Black "LeRoidesChampions"]
[Result "1-0"]
[WhiteElo "2513"]
[BlackElo "2666"]
[TimeControl "180+1"]
[EndTime "9:15:05 PDT"]
[Termination "YegoryoCh won by resignation"]

1. e4 {[%clk 0:03:00.9]} 1... c5 {[%clk 0:02:56.4]} 2. Nf3 {[%clk 0:03:00.6]}
2... e6 {[%clk 0:02:57.3]} 3. d4 {[%clk 0:03:00.4]} 3... cxd4 {[%clk 0:02:58.2]}
4. Nxd4 {[%clk 0:03:01.3]} 4... a6 {[%clk 0:02:59.1]} 5. c4 {[%clk 0:03:01]}
5... Nc6 {[%clk 0:02:59.7]} 6. Nc3 {[%clk 0:02:59.7]} 6... Qc7 {[%clk
0:02:59.7]} 7. a3 {[%clk 0:02:59.3]} 7... Nf6 {[%clk 0:02:58.6]} 8. Be3 {[%clk
0:02:58.1]} 8... Be7 {[%clk 0:02:55.8]} 9. Rc1 {[%clk 0:02:50.2]} 9... b6 {[%clk
0:02:55.9]} 10. Be2 {[%clk 0:02:48.4]} 10... Bb7 {[%clk 0:02:55.9]} 11. O-O
{[%clk 0:02:43.2]} 11... Nxd4 {[%clk 0:02:55.6]} 12. Qxd4 {[%clk 0:02:38.2]}
12... Bc5 {[%clk 0:02:55.6]} 13. Qd3 {[%clk 0:02:38.8]} 13... Bxe3 {[%clk
0:02:55.7]} 14. Qxe3 {[%clk 0:02:39.7]} 14... O-O {[%clk 0:02:52.4]} 15. Rfd1
{[%clk 0:02:31.6]} 15... Bc6 {[%clk 0:02:52.3]} 16. b4 {[%clk 0:02:10]} 16... b5
{[%clk 0:02:38.1]} 17. cxb5 {[%clk 0:02:07.9]} 17... axb5 {[%clk 0:02:39]} 18.
Nxb5 {[%clk 0:02:04.9]} 18... Qe5 {[%clk 0:02:36.9]} 19. Nd6 {[%clk 0:01:55]}
19... Nxe4 {[%clk 0:01:58.2]} 20. f3 {[%clk 0:01:50.4]} 20... Qxd6 {[%clk
0:01:41]} 21. Rxd6 {[%clk 0:01:48.2]} 21... Nxd6 {[%clk 0:01:41.9]} 22. Qc5
{[%clk 0:01:45.5]} 22... Nf5 {[%clk 0:01:31]} 23. b5 {[%clk 0:01:41.8]} 23...
Bd5 {[%clk 0:01:31]} 24. Bd3 {[%clk 0:01:18.4]} 24... Nh4 {[%clk 0:01:23.4]} 25.
Be4 {[%clk 0:01:13.1]} 25... Bxe4 {[%clk 0:01:11.7]} 26. fxe4 {[%clk 0:01:14]}
26... Ng6 {[%clk 0:01:12.1]} 27. b6 {[%clk 0:01:13]} 27... Nf4 {[%clk 0:01:12]}
28. Qe3 {[%clk 0:01:11.7]} 28... e5 {[%clk 0:01:11.6]} 29. Kf1 {[%clk
0:00:59.8]} 29... Ne6 {[%clk 0:01:10.7]} 30. b7 {[%clk 0:00:56.1]} 30... Rab8
{[%clk 0:01:09.8]} 31. Qa7 {[%clk 0:00:55.5]} 31... Rbd8 {[%clk 0:01:01.6]} 32.
a4 {[%clk 0:00:52.8]} 32... Nd4 {[%clk 0:01:00.4]} 33. a5 {[%clk 0:00:49.6]}
33... Nb3 {[%clk 0:01:00.8]} 34. Rd1 {[%clk 0:00:41.4]} 34... f5 {[%clk
0:00:55.2]} 35. Qb6 {[%clk 0:00:34.5]} 35... fxe4+ {[%clk 0:00:53.4]} 36. Kg1
{[%clk 0:00:34.9]} 36... Nd4 {[%clk 0:00:50.6]} 37. a6 {[%clk 0:00:34.2]} 37...
e3 {[%clk 0:00:41.4]} 38. a7 {[%clk 0:00:31.3]} 38... Ne2+ {[%clk 0:00:30.5]}
39. Kh1 {[%clk 0:00:30.9]} 39... Ng3+ {[%clk 0:00:31.3]} 40. hxg3 {[%clk
0:00:23]} 40... e2 {[%clk 0:00:31.6]} 41. Rg1 {[%clk 0:00:23.1]} 1-0

[Event "Early-Titled-Tuesday-Blitz-March-26-2024"]
[Site "Chess.com"]
[Date "2024.03.26"]
[Round "7"]
[White "theoneandonlydaaevik"]
[Black "KorolDimitriy75"]
[Result "1-0"]
[WhiteElo "2533"]
[BlackElo "2368"]
[TimeControl "180+1"]
[EndTime "9:15:05 PDT"]
[Termination "theoneandonlydaaevik won by checkmate"]

1. Nf3 {[%clk 0:02:55.4]} 1... c5 {[%clk 0:03:00.2]} 2. g3 {[%clk 0:02:52.3]}
2... g6 {[%clk 0:03:00.3]} 3. Bg2 {[%clk 0:02:53.2]} 3... Bg7 {[%clk 0:03:01]}
4. c4 {[%clk 0:02:53.9]} 4... Nc6 {[%clk 0:03:01.5]} 5. Nc3 {[%clk 0:02:54.8]}
5... Nh6 {[%clk 0:03:01.8]} 6. d4 {[%clk 0:02:54.5]} 6... cxd4 {[%clk
0:03:01.1]} 7. Nxd4 {[%clk 0:02:54.5]} 7... Nxd4 {[%clk 0:03:00.3]} 8. Bxh6
{[%clk 0:02:54.6]} 8... Bxh6 {[%clk 0:03:00.5]} 9. Qxd4 {[%clk 0:02:54.8]} 9...
O-O {[%clk 0:03:01.1]} 10. h4 {[%clk 0:02:54]} 10... Bg7 {[%clk 0:02:59.7]} 11.
Qd2 {[%clk 0:02:54.2]} 11... Qa5 {[%clk 0:02:58.3]} 12. Nd5 {[%clk 0:02:45.2]}
12... Qxd2+ {[%clk 0:01:56.6]} 13. Kxd2 {[%clk 0:02:46.1]} 13... e6 {[%clk
0:01:46]} 14. Ne7+ {[%clk 0:02:32.9]} 14... Kh8 {[%clk 0:01:45.5]} 15. h5 {[%clk
0:02:32.9]} 15... Bf6 {[%clk 0:01:26.2]} 16. Nxc8 {[%clk 0:02:16.8]} 16... Raxc8
{[%clk 0:01:24.8]} 17. Rac1 {[%clk 0:02:16.6]} 17... Bxb2 {[%clk 0:01:11.8]} 18.
Rc2 {[%clk 0:02:15.9]} 18... Bf6 {[%clk 0:01:11]} 19. Bxb7 {[%clk 0:02:08.2]}
19... Rc7 {[%clk 0:01:11]} 20. Be4 {[%clk 0:02:07.5]} 20... Kg7 {[%clk
0:01:09.2]} 21. hxg6 {[%clk 0:02:02.4]} 21... hxg6 {[%clk 0:01:10.1]} 22. e3
{[%clk 0:01:59.5]} 22... Rfc8 {[%clk 0:01:08.3]} 23. Bd3 {[%clk 0:01:58.6]}
23... Rc5 {[%clk 0:01:05.5]} 24. Rb1 {[%clk 0:01:57.6]} 24... R8c7 {[%clk
0:01:04.9]} 25. Rb5 {[%clk 0:01:54.5]} 25... d6 {[%clk 0:00:58.9]} 26. Rc1
{[%clk 0:01:42.2]} 26... Kf8 {[%clk 0:00:52.5]} 27. Rcb1 {[%clk 0:01:37.1]}
27... Ke7 {[%clk 0:00:52.6]} 28. Rb7 {[%clk 0:01:36.4]} 28... Kd7 {[%clk
0:00:50.6]} 29. a4 {[%clk 0:01:30]} 29... Ra5 {[%clk 0:00:46.6]} 30. Bc2 {[%clk
0:01:29.1]} 30... Kc8 {[%clk 0:00:32.6]} 31. Rb8+ {[%clk 0:01:14.9]} 31... Kd7
{[%clk 0:00:32.6]} 32. R1b5 {[%clk 0:01:15.5]} 32... Ra6 {[%clk 0:00:29]} 33.
Bb3 {[%clk 0:01:14.4]} 33... Rac6 {[%clk 0:00:26.6]} 34. a5 {[%clk 0:01:10.9]}
34... Ke7 {[%clk 0:00:25.5]} 35. R8b7 {[%clk 0:01:10]} 35... g5 {[%clk
0:00:18.7]} 36. a6 {[%clk 0:01:09.7]} 36... Kd8 {[%clk 0:00:17.8]} 37. Rb8+
{[%clk 0:00:59.4]} 37... Ke7 {[%clk 0:00:17.6]} 38. R5b7 {[%clk 0:00:59.2]}
38... Be5 {[%clk 0:00:15]} 39. f4 {[%clk 0:00:44.6]} 39... gxf4 {[%clk
0:00:14.6]} 40. gxf4 {[%clk 0:00:45.5]} 40... Bf6 {[%clk 0:00:14.5]} 41. Rxc7+
{[%clk 0:00:40.7]} 41... Rxc7 {[%clk 0:00:14.6]} 42. Ba4 {[%clk 0:00:41.3]}
42... d5 {[%clk 0:00:14]} 43. Rb7 {[%clk 0:00:38.6]} 43... Kd6 {[%clk
0:00:13.7]} 44. c5+ {[%clk 0:00:38.8]} 44... Rxc5 {[%clk 0:00:12.4]} 45. Rd7#
{[%clk 0:00:39.2]} 1-0

[Event "Early-Titled-Tuesday-Blitz-March-26-2024"]
[Site "Chess.com"]
[Date "2024.03.26"]
[Round "7"]
[White "Let_it_be_1"]
[Black "Gorbaev"]
[Result "1-0"]
[WhiteElo "2664"]
[BlackElo "2494"]
[TimeControl "180+1"]
[EndTime "9:15:06 PDT"]
[Termination "Let_it_be_1 won by resignation"]

1. e4 {[%clk 0:03:00.9]} 1... c5 {[%clk 0:02:59.3]} 2. Nf3 {[%clk 0:03:00.6]}
2... e6 {[%clk 0:02:59.5]} 3. d4 {[%clk 0:03:01.1]} 3... cxd4 {[%clk 0:02:59.9]}
4. Nxd4 {[%clk 0:03:01.8]} 4... a6 {[%clk 0:03:00.4]} 5. Nc3 {[%clk 0:03:01.6]}
5... b5 {[%clk 0:03:00.2]} 6. Be2 {[%clk 0:03:01.8]} 6... Bb7 {[%clk 0:02:59.7]}
7. Bf3 {[%clk 0:03:01.9]} 7... Qc7 {[%clk 0:02:57.3]} 8. O-O {[%clk 0:03:01.5]}
8... Bc5 {[%clk 0:02:57.1]} 9. Be3 {[%clk 0:02:51.2]} 9... d6 {[%clk 0:02:49.8]}
10. Ndxb5 {[%clk 0:02:05.3]} 10... axb5 {[%clk 0:02:42.9]} 11. Nxb5 {[%clk
0:02:04.7]} 11... Qd7 {[%clk 0:02:38.8]} 12. Bxc5 {[%clk 0:02:00.6]} 12... dxc5
{[%clk 0:02:38.6]} 13. Nd6+ {[%clk 0:01:57.8]} 13... Ke7 {[%clk 0:02:26.1]} 14.
Nxb7 {[%clk 0:01:56.1]} 14... Qxb7 {[%clk 0:02:22.6]} 15. e5 {[%clk 0:01:56.3]}
15... Qa6 {[%clk 0:02:19.1]} 16. Qd6+ {[%clk 0:01:37.7]} 16... Qxd6 {[%clk
0:02:15]} 17. exd6+ {[%clk 0:01:37.7]} 17... Kxd6 {[%clk 0:02:15.2]} 18. Bxa8
{[%clk 0:01:37.6]} 18... Nf6 {[%clk 0:02:11.4]} 19. Rfd1+ {[%clk 0:01:36.2]}
19... Kc7 {[%clk 0:02:11.1]} 20. Bf3 {[%clk 0:01:34.7]} 20... Nbd7 {[%clk
0:02:11.1]} 21. a4 {[%clk 0:01:31]} 21... Ne5 {[%clk 0:02:11.1]} 22. Be2 {[%clk
0:01:30.2]} 22... Rb8 {[%clk 0:02:07.8]} 23. b3 {[%clk 0:01:30.1]} 23... Nd5
{[%clk 0:02:07.6]} 24. Bf1 {[%clk 0:01:21.6]} 24... Nc6 {[%clk 0:01:55.9]} 25.
Bc4 {[%clk 0:00:57.1]} 25... Nc3 {[%clk 0:01:48]} 26. Rd2 {[%clk 0:00:48.6]}
26... Nd4 {[%clk 0:01:45.4]} 27. f3 {[%clk 0:00:45.9]} 27... g5 {[%clk
0:01:28.6]} 28. a5 {[%clk 0:00:45.4]} 28... Ra8 {[%clk 0:01:23.6]} 29. a6 {[%clk
0:00:45.2]} 29... Kb6 {[%clk 0:01:22.9]} 30. Kf2 {[%clk 0:00:42.8]} 30... Ra7
{[%clk 0:01:09.5]} 31. Rd3 {[%clk 0:00:38.9]} 31... Ncb5 {[%clk 0:01:02.1]} 32.
c3 {[%clk 0:00:35.4]} 32... Nf5 {[%clk 0:00:56.6]} 33. Bxb5 {[%clk 0:00:30.5]}
33... Kxb5 {[%clk 0:00:56.2]} 34. Rd8 {[%clk 0:00:30.5]} 34... Rxa6 {[%clk
0:00:51.1]} 35. Rxa6 {[%clk 0:00:30]} 35... Kxa6 {[%clk 0:00:50.9]} 36. g4
{[%clk 0:00:27.1]} 36... Ne7 {[%clk 0:00:33]} 37. Rd7 {[%clk 0:00:26.1]} 37...
Nd5 {[%clk 0:00:33.2]} 38. c4 {[%clk 0:00:24.2]} 38... Nf4 {[%clk 0:00:29.9]}
39. Rxf7 {[%clk 0:00:23.6]} 39... Ka5 {[%clk 0:00:28.6]} 40. Rxh7 {[%clk
0:00:20.9]} 40... Kb4 {[%clk 0:00:28.8]} 41. Rb7+ {[%clk 0:00:21]} 41... Kc3
{[%clk 0:00:29]} 42. Ke3 {[%clk 0:00:20.8]} 1-0

[Event "Early-Titled-Tuesday-Blitz-March-26-2024"]
[Site "Chess.com"]
[Date "2024.03.26"]
[Round "7"]
[White "Attacker_2006"]
[Black "FREDERICKtheMATE"]
[Result "0-1"]
[WhiteElo "2408"]
[BlackElo "2687"]
[TimeControl "180+1"]
[EndTime "9:15:06 PDT"]
[Termination "FREDERICKtheMATE won by resignation"]

1. Nf3 {[%clk 0:03:00.9]} 1... Nf6 {[%clk 0:02:59.5]} 2. g3 {[%clk 0:02:59.1]}
2... g6 {[%clk 0:03:00.1]} 3. Bg2 {[%clk 0:02:59.4]} 3... Bg7 {[%clk 0:03:00.7]}
4. O-O {[%clk 0:02:59.6]} 4... O-O {[%clk 0:03:01.3]} 5. b3 {[%clk 0:02:58.6]}
5... b6 {[%clk 0:02:58.8]} 6. Bb2 {[%clk 0:02:57.7]} 6... Bb7 {[%clk 0:02:58.8]}
7. c4 {[%clk 0:02:56.3]} 7... c5 {[%clk 0:02:59]} 8. d4 {[%clk 0:02:54.4]} 8...
cxd4 {[%clk 0:02:59.9]} 9. Nxd4 {[%clk 0:02:54.8]} 9... Bxg2 {[%clk 0:02:59.5]}
10. Kxg2 {[%clk 0:02:55.2]} 10... d5 {[%clk 0:03:00.1]} 11. cxd5 {[%clk
0:02:54]} 11... Qxd5+ {[%clk 0:03:00.2]} 12. Nf3 {[%clk 0:02:53.4]} 12... Nc6
{[%clk 0:02:57.9]} 13. Qxd5 {[%clk 0:02:46.3]} 13... Nxd5 {[%clk 0:02:58.8]} 14.
Bxg7 {[%clk 0:02:47]} 14... Kxg7 {[%clk 0:02:59.3]} 15. Nbd2 {[%clk 0:02:47.5]}
15... Rac8 {[%clk 0:02:58.4]} 16. Rac1 {[%clk 0:02:47.6]} 16... Rfd8 {[%clk
0:02:58.3]} 17. a3 {[%clk 0:02:44.2]} 17... Na5 {[%clk 0:02:53]} 18. b4 {[%clk
0:02:41.5]} 18... Nb7 {[%clk 0:02:52.7]} 19. Nb3 {[%clk 0:02:36.3]} 19... Nc3
{[%clk 0:02:49.6]} 20. e3 {[%clk 0:02:33.1]} 20... Nd6 {[%clk 0:02:44.9]} 21.
Rc2 {[%clk 0:02:25.8]} 21... Na4 {[%clk 0:02:41.7]} 22. Rfc1 {[%clk 0:02:23.7]}
22... Rxc2 {[%clk 0:02:39.8]} 23. Rxc2 {[%clk 0:02:24.6]} 23... Nb5 {[%clk
0:02:40.4]} 24. Nbd4 {[%clk 0:02:20.3]} 24... Nxd4 {[%clk 0:02:37.7]} 25. Nxd4
{[%clk 0:02:20.9]} 25... e5 {[%clk 0:02:34.5]} 26. Nc6 {[%clk 0:02:05.4]} 26...
Rc8 {[%clk 0:02:33.1]} 27. b5 {[%clk 0:02:06.1]} 27... e4 {[%clk 0:02:31.9]} 28.
Rd2 {[%clk 0:02:05.4]} 28... Rc7 {[%clk 0:02:29.9]} 29. Rd8 {[%clk 0:01:56.1]}
29... Nc3 {[%clk 0:02:24.9]} 30. Nd4 {[%clk 0:01:39]} 30... Nb1 {[%clk 0:02:24]}
31. a4 {[%clk 0:01:25]} 31... Nc3 {[%clk 0:02:23.9]} 32. Re8 {[%clk 0:01:24.5]}
32... Kf6 {[%clk 0:02:10.5]} 33. Nc6 {[%clk 0:01:19.8]} 33... Nxa4 {[%clk
0:02:09.3]} 34. Rxe4 {[%clk 0:01:19.8]} 34... Nc3 {[%clk 0:02:09.4]} 35. Rf4+
{[%clk 0:01:17.3]} 35... Kg7 {[%clk 0:02:09.2]} 36. Ne5 {[%clk 0:00:25.5]} 36...
Nxb5 {[%clk 0:02:07.5]} 37. g4 {[%clk 0:00:25.8]} 37... Nd6 {[%clk 0:01:59.4]}
38. g5 {[%clk 0:00:25.1]} 38... Rc5 {[%clk 0:01:58.7]} 39. Nf3 {[%clk
0:00:19.9]} 39... Rc4 {[%clk 0:01:56.1]} 40. Rf6 {[%clk 0:00:17.5]} 40... Ne4
{[%clk 0:01:53.8]} 41. Rxf7+ {[%clk 0:00:17.6]} 41... Kxf7 {[%clk 0:01:52.9]}
42. Ne5+ {[%clk 0:00:18.3]} 42... Ke6 {[%clk 0:01:53.5]} 43. Nxc4 {[%clk
0:00:19]} 43... Nxg5 {[%clk 0:01:54.1]} 44. h4 {[%clk 0:00:16.7]} 44... Ne4
{[%clk 0:01:52.1]} 45. Kf3 {[%clk 0:00:17]} 45... Kd5 {[%clk 0:01:51.8]} 46. Nb2
{[%clk 0:00:13.9]} 46... a5 {[%clk 0:01:47.1]} 47. Ke2 {[%clk 0:00:11.9]} 47...
b5 {[%clk 0:01:46.1]} 48. f3 {[%clk 0:00:10.6]} 48... Nd6 {[%clk 0:01:45.9]} 49.
Kd3 {[%clk 0:00:10.3]} 49... a4 {[%clk 0:01:44.2]} 50. e4+ {[%clk 0:00:11]}
50... Kc5 {[%clk 0:01:43.6]} 51. Kc3 {[%clk 0:00:04.9]} 51... b4+ {[%clk
0:01:43.4]} 52. Kc2 {[%clk 0:00:05.5]} 52... a3 {[%clk 0:01:39.5]} 53. Nd3+
{[%clk 0:00:05.6]} 53... Kc4 {[%clk 0:01:39.4]} 54. Nc1 {[%clk 0:00:05.9]} 54...
Nb5 {[%clk 0:01:35.1]} 55. f4 {[%clk 0:00:04.2]} 55... Nd4+ {[%clk 0:01:34.5]}
56. Kb1 {[%clk 0:00:04.7]} 56... b3 {[%clk 0:01:34.3]} 57. e5 {[%clk 0:00:02.5]}
57... a2+ {[%clk 0:01:31.2]} 58. Kb2 {[%clk 0:00:02.7]} 58... Kd5 {[%clk
0:01:27.8]} 59. Ka1 {[%clk 0:00:01.3]} 59... Nc2+ {[%clk 0:01:27.7]} 60. Kb2
{[%clk 0:00:02.2]} 60... a1=Q+ {[%clk 0:01:27.8]} 61. Kxb3 {[%clk 0:00:02.8]}
61... Qxc1 {[%clk 0:01:28.4]} 0-1